[Event "Early-Titled-Tuesday-Blitz-October-10-2023"]
[Site "Chess.com"]
[Date "2023.10.10"]
[Round "8"]
[White "stratacticos"]
[Black "LeoWin2012"]
[Result "0-1"]
[WhiteElo "1789"]
[BlackElo "2306"]
[TimeControl "180+1"]
[EndTime "9:26:25 PDT"]
[Termination "LeoWin2012 won by resignation"]

1. b4 {[%clk 0:02:59.6]} 1... d6 {[%clk 0:02:56]} 2. d4 {[%clk 0:02:57.5]} 2...
b5 {[%clk 0:02:54.1]} 3. e4 {[%clk 0:02:56.1]} 3... a6 {[%clk 0:02:52.9]} 4. a4
{[%clk 0:02:52.6]} 4... bxa4 {[%clk 0:02:51.6]} 5. c4 {[%clk 0:02:52.5]} 5...
Bb7 {[%clk 0:02:49]} 6. Nc3 {[%clk 0:02:51]} 6... Nf6 {[%clk 0:02:48.4]} 7. d5
{[%clk 0:02:49.8]} 7... e5 {[%clk 0:02:45.4]} 8. Qxa4+ {[%clk 0:02:46.2]} 8...
Nbd7 {[%clk 0:02:44.2]} 9. Bd3 {[%clk 0:02:37.7]} 9... Be7 {[%clk 0:02:38.9]}
10. Nge2 {[%clk 0:02:37.4]} 10... O-O {[%clk 0:02:37.7]} 11. O-O {[%clk
0:02:37.2]} 11... Qc8 {[%clk 0:02:31.2]} 12. f4 {[%clk 0:02:27]} 12... exf4
{[%clk 0:02:29.8]} 13. Bxf4 {[%clk 0:02:26]} 13... Ne5 {[%clk 0:02:29.7]} 14.
Bxe5 {[%clk 0:02:23]} 14... dxe5 {[%clk 0:02:30.6]} 15. c5 {[%clk 0:02:22.7]}
15... Qg4 {[%clk 0:02:27]} 16. h3 {[%clk 0:02:19.2]} 16... Qg5 {[%clk
0:02:25.3]} 17. Rf3 {[%clk 0:02:10.7]} 17... Bc8 {[%clk 0:02:22.8]} 18. Raf1
{[%clk 0:02:05.8]} 18... Nh5 {[%clk 0:02:17.9]} 19. Qd1 {[%clk 0:02:01.7]} 19...
a5 {[%clk 0:02:14.4]} 20. Nb5 {[%clk 0:01:55.3]} 20... axb4 {[%clk 0:02:13.1]}
21. Nxc7 {[%clk 0:01:53.9]} 21... Bxc5+ {[%clk 0:02:11.9]} 22. Kh1 {[%clk
0:01:47.1]} 22... Ra2 {[%clk 0:02:11]} 23. Bc4 {[%clk 0:01:43.2]} 23... Rxe2
{[%clk 0:02:10]} 24. Qxe2 {[%clk 0:01:40.8]} 24... Ng3+ {[%clk 0:02:10.1]} 25.
Rxg3 {[%clk 0:01:40.3]} 25... Qxg3 {[%clk 0:02:11]} 26. Rf3 {[%clk 0:01:29.7]}
26... Qg5 {[%clk 0:02:10.2]} 27. Qf1 {[%clk 0:01:27.1]} 27... Qd2 {[%clk
0:02:01]} 28. d6 {[%clk 0:01:23.3]} 28... Kh8 {[%clk 0:01:08.4]} 29. Rxf7 {[%clk
0:01:17.5]} 29... Rxf7 {[%clk 0:00:46.8]} 30. Qxf7 {[%clk 0:01:16.8]} 30... Qe1+
{[%clk 0:00:47]} 31. Bf1 {[%clk 0:01:04.3]} 31... h6 {[%clk 0:00:44.8]} 32. Ne6
{[%clk 0:00:48.6]} 32... Bxe6 {[%clk 0:00:40.9]} 33. Qf8+ {[%clk 0:00:27.3]}
33... Kh7 {[%clk 0:00:40]} 0-1

[Event "Early-Titled-Tuesday-Blitz-October-10-2023"]
[Site "Chess.com"]
[Date "2023.10.10"]
[Round "8"]
[White "AnaKuchava"]
[Black "arenal72"]
[Result "0-1"]
[WhiteElo "2254"]
[BlackElo "2413"]
[TimeControl "180+1"]
[EndTime "9:26:28 PDT"]
[Termination "arenal72 won on time"]

1. d4 {[%clk 0:03:00.9]} 1... g6 {[%clk 0:03:00.1]} 2. c4 {[%clk 0:02:57.8]}
2... Bg7 {[%clk 0:03:00]} 3. Nc3 {[%clk 0:02:56.2]} 3... Nf6 {[%clk 0:03:00.1]}
4. e4 {[%clk 0:02:55.3]} 4... d6 {[%clk 0:03:00.4]} 5. Nf3 {[%clk 0:02:54.9]}
5... O-O {[%clk 0:03:00.6]} 6. Be2 {[%clk 0:02:54.4]} 6... c5 {[%clk 0:03:00.8]}
7. d5 {[%clk 0:02:53.5]} 7... e6 {[%clk 0:02:58]} 8. O-O {[%clk 0:02:52]} 8...
exd5 {[%clk 0:02:57.9]} 9. exd5 {[%clk 0:02:49.8]} 9... Nbd7 {[%clk 0:02:56.6]}
10. Bf4 {[%clk 0:02:46.8]} 10... Ne8 {[%clk 0:02:56.4]} 11. Re1 {[%clk
0:02:39.9]} 11... Ne5 {[%clk 0:02:52.6]} 12. h3 {[%clk 0:02:39.9]} 12... Qf6
{[%clk 0:02:35.5]} 13. Qd2 {[%clk 0:02:20.9]} 13... Qf5 {[%clk 0:01:45.8]} 14.
g4 {[%clk 0:01:08.2]} 14... Qd7 {[%clk 0:01:35]} 15. Bh6 {[%clk 0:01:05.1]}
15... a6 {[%clk 0:01:28.6]} 16. Bxg7 {[%clk 0:00:59.5]} 16... Kxg7 {[%clk
0:01:29.5]} 17. Qf4 {[%clk 0:00:20.5]} 17... f6 {[%clk 0:01:23.9]} 18. a4 {[%clk
0:00:19.4]} 18... g5 {[%clk 0:01:09.8]} 19. Nxg5 {[%clk 0:00:09.5]} 19... fxg5
{[%clk 0:01:08.2]} 20. Qxg5+ {[%clk 0:00:10.4]} 20... Kh8 {[%clk 0:01:06.7]} 21.
f4 {[%clk 0:00:10.1]} 21... Ng6 {[%clk 0:01:02]} 22. Rf1 {[%clk 0:00:09.5]}
22... Qe7 {[%clk 0:00:57.5]} 23. Qh6 {[%clk 0:00:09.2]} 23... Qg7 {[%clk
0:00:53.3]} 24. Qg5 {[%clk 0:00:08.1]} 24... Qd4+ {[%clk 0:00:51.2]} 25. Kh1
{[%clk 0:00:04.5]} 25... Qf6 {[%clk 0:00:42.8]} 26. Qxf6+ {[%clk 0:00:03.7]}
26... Nxf6 {[%clk 0:00:42.4]} 27. Bd3 {[%clk 0:00:03.3]} 27... Bd7 {[%clk
0:00:40.6]} 28. Rae1 {[%clk 0:00:03.2]} 28... Rae8 {[%clk 0:00:40]} 0-1

[Event "Early-Titled-Tuesday-Blitz-October-10-2023"]
[Site "Chess.com"]
[Date "2023.10.10"]
[Round "8"]
[White "YairParkhov"]
[Black "CraiggoryC"]
[Result "1-0"]
[WhiteElo "2519"]
[BlackElo "2257"]
[TimeControl "180+1"]
[EndTime "9:26:31 PDT"]
[Termination "YairParkhov won on time"]

1. e4 {[%clk 0:02:58.2]} 1... e6 {[%clk 0:03:00.3]} 2. Nf3 {[%clk 0:02:55.8]}
2... d5 {[%clk 0:02:55.8]} 3. e5 {[%clk 0:02:52.4]} 3... c5 {[%clk 0:02:55]} 4.
c4 {[%clk 0:02:47.1]} 4... Nc6 {[%clk 0:02:48.7]} 5. Nc3 {[%clk 0:02:37.3]} 5...
Nh6 {[%clk 0:02:40]} 6. cxd5 {[%clk 0:02:26.8]} 6... exd5 {[%clk 0:02:40.9]} 7.
Bb5 {[%clk 0:02:26.6]} 7... Nf5 {[%clk 0:02:10.7]} 8. Qa4 {[%clk 0:02:20.8]}
8... d4 {[%clk 0:01:57]} 9. Ne4 {[%clk 0:02:04.8]} 9... Bd7 {[%clk 0:01:28.1]}
10. Qc4 {[%clk 0:01:53.8]} 10... Rc8 {[%clk 0:01:12.6]} 11. O-O {[%clk
0:01:37.7]} 11... Be7 {[%clk 0:01:08.7]} 12. d3 {[%clk 0:01:26.8]} 12... O-O
{[%clk 0:01:06.7]} 13. Bg5 {[%clk 0:00:54.6]} 13... Nxe5 {[%clk 0:00:37.2]} 14.
Nxe5 {[%clk 0:00:46.9]} 14... Bxb5 {[%clk 0:00:36.8]} 15. Qxb5 {[%clk 0:00:46]}
15... Bxg5 {[%clk 0:00:36.2]} 16. Nd7 {[%clk 0:00:37.1]} 16... Re8 {[%clk
0:00:23.4]} 17. Ndxc5 {[%clk 0:00:34.5]} 17... Qd5 {[%clk 0:00:04]} 18. Qxb7
{[%clk 0:00:18.8]} 18... Rxc5 {[%clk 0:00:03.6]} 19. Qxd5 {[%clk 0:00:17.3]}
19... Rxd5 {[%clk 0:00:03.7]} 20. Nxg5 {[%clk 0:00:17.9]} 1-0

[Event "Early-Titled-Tuesday-Blitz-October-10-2023"]
[Site "Chess.com"]
[Date "2023.10.10"]
[Round "8"]
[White "DonCiao"]
[Black "lamomiajunior"]
[Result "0-1"]
[WhiteElo "2086"]
[BlackElo "2687"]
[TimeControl "180+1"]
[EndTime "9:26:42 PDT"]
[Termination "lamomiajunior won on time"]

1. c4 {[%clk 0:03:00.9]} 1... Nf6 {[%clk 0:02:59.7]} 2. g3 {[%clk 0:03:00.8]}
2... e6 {[%clk 0:02:59.1]} 3. Bg2 {[%clk 0:03:00.5]} 3... d5 {[%clk 0:03:00]} 4.
Nf3 {[%clk 0:03:00.5]} 4... dxc4 {[%clk 0:02:59.2]} 5. Qa4+ {[%clk 0:02:58.1]}
5... Nbd7 {[%clk 0:02:59]} 6. Qxc4 {[%clk 0:02:57.8]} 6... a6 {[%clk 0:02:59.6]}
7. Qc2 {[%clk 0:02:56.4]} 7... c5 {[%clk 0:02:56.5]} 8. Nc3 {[%clk 0:02:50.6]}
8... Bd6 {[%clk 0:02:51.4]} 9. O-O {[%clk 0:02:49.3]} 9... O-O {[%clk
0:02:50.7]} 10. d3 {[%clk 0:02:42.6]} 10... Rb8 {[%clk 0:02:50.6]} 11. a4 {[%clk
0:02:37.2]} 11... b5 {[%clk 0:02:49.8]} 12. axb5 {[%clk 0:02:34.7]} 12... axb5
{[%clk 0:02:50.7]} 13. e4 {[%clk 0:02:18.4]} 13... Qc7 {[%clk 0:02:43.5]} 14.
Re1 {[%clk 0:02:06.7]} 14... Ng4 {[%clk 0:02:35.1]} 15. d4 {[%clk 0:01:54.3]}
15... cxd4 {[%clk 0:02:30.7]} 16. Nxd4 {[%clk 0:01:53.6]} 16... b4 {[%clk
0:02:31.2]} 17. Nce2 {[%clk 0:01:45.8]} 17... Qb6 {[%clk 0:02:07.5]} 18. h3
{[%clk 0:01:37.8]} 18... Nxf2 {[%clk 0:01:56.8]} 19. Kxf2 {[%clk 0:01:36.9]}
19... e5 {[%clk 0:01:56.3]} 20. Be3 {[%clk 0:01:35.1]} 20... exd4 {[%clk
0:01:56.8]} 21. Bxd4 {[%clk 0:01:34.4]} 21... Bc5 {[%clk 0:01:57.3]} 22. Bxc5
{[%clk 0:01:13.6]} 22... Nxc5 {[%clk 0:01:58.2]} 23. Kf1 {[%clk 0:01:09.3]}
23... Be6 {[%clk 0:01:56.8]} 24. Nd4 {[%clk 0:01:06.4]} 24... Rfd8 {[%clk
0:01:55.6]} 25. Nxe6 {[%clk 0:01:04.3]} 25... Nxe6 {[%clk 0:01:56.5]} 26. Qf2
{[%clk 0:01:02]} 26... Qb5+ {[%clk 0:01:42.4]} 27. Kg1 {[%clk 0:01:00.8]} 27...
Qe5 {[%clk 0:01:40.5]} 28. Ra7 {[%clk 0:00:56.4]} 28... f6 {[%clk 0:01:32.3]}
29. Kh2 {[%clk 0:00:35.3]} 29... Rbc8 {[%clk 0:01:28.3]} 30. Qf5 {[%clk
0:00:32.1]} 30... Rc2 {[%clk 0:01:21.7]} 31. Re7 {[%clk 0:00:20.3]} 31... Qxf5
{[%clk 0:00:58.9]} 32. exf5 {[%clk 0:00:20.1]} 32... Nd4 {[%clk 0:00:59.1]} 33.
Re8+ {[%clk 0:00:07.4]} 33... Rxe8 {[%clk 0:00:59.2]} 34. Rxe8+ {[%clk
0:00:06.9]} 34... Kf7 {[%clk 0:01:00]} 35. Rb8 {[%clk 0:00:05.6]} 35... Nf3+
{[%clk 0:01:00.1]} 36. Kh1 {[%clk 0:00:03.1]} 36... Rc1+ {[%clk 0:00:59.5]} 37.
Bf1 {[%clk 0:00:03.2]} 37... Nd2 {[%clk 0:00:58.1]} 38. Kg2 {[%clk 0:00:01.7]}
38... Nxf1 {[%clk 0:00:58.2]} 39. Rxb4 {[%clk 0:00:01.7]} 39... Ne3+ {[%clk
0:00:58.7]} 0-1

[Event "Early-Titled-Tuesday-Blitz-October-10-2023"]
[Site "Chess.com"]
[Date "2023.10.10"]
[Round "8"]
[White "c63_amg"]
[Black "combidharma"]
[Result "1-0"]
[WhiteElo "2810"]
[BlackElo "2667"]
[TimeControl "180+1"]
[EndTime "9:26:45 PDT"]
[Termination "c63_amg won by checkmate"]

1. e4 {[%clk 0:03:00.9]} 1... c5 {[%clk 0:02:53.8]} 2. Nf3 {[%clk 0:03:00.7]}
2... Nc6 {[%clk 0:02:52.4]} 3. Bb5 {[%clk 0:02:59.8]} 3... g6 {[%clk 0:02:51]}
4. c3 {[%clk 0:02:59.2]} 4... Bg7 {[%clk 0:02:51.2]} 5. d4 {[%clk 0:02:59.7]}
5... cxd4 {[%clk 0:02:41.1]} 6. cxd4 {[%clk 0:03:00.6]} 6... d5 {[%clk 0:02:34]}
7. exd5 {[%clk 0:02:58.8]} 7... Qxd5 {[%clk 0:02:23.9]} 8. Nc3 {[%clk
0:02:58.9]} 8... Qh5 {[%clk 0:01:47]} 9. d5 {[%clk 0:02:58.5]} 9... a6 {[%clk
0:01:46.8]} 10. Ba4 {[%clk 0:02:49.2]} 10... b5 {[%clk 0:01:46.2]} 11. dxc6
{[%clk 0:02:49.1]} 11... bxa4 {[%clk 0:01:46.1]} 12. Nd5 {[%clk 0:02:41.2]}
12... Be5 {[%clk 0:01:25.7]} 13. Nxe5 {[%clk 0:02:12]} 13... Qxe5+ {[%clk
0:01:21.7]} 14. Be3 {[%clk 0:02:12.6]} 14... Nf6 {[%clk 0:01:11.6]} 15. Nb6
{[%clk 0:01:07.4]} 15... Rb8 {[%clk 0:01:09.2]} 16. c7 {[%clk 0:00:43.5]} 16...
Qxc7 {[%clk 0:00:49.6]} 17. Rc1 {[%clk 0:00:44]} 17... Qb7 {[%clk 0:00:40.4]}
18. Nxc8 {[%clk 0:00:39.7]} 18... Rxc8 {[%clk 0:00:37.1]} 19. Qxa4+ {[%clk
0:00:40.4]} 19... Nd7 {[%clk 0:00:29.1]} 20. Rd1 {[%clk 0:00:40.7]} 20... Rd8
{[%clk 0:00:16.6]} 21. O-O {[%clk 0:00:25.3]} 21... O-O {[%clk 0:00:17]} 22. Bh6
{[%clk 0:00:23.1]} 22... Rfe8 {[%clk 0:00:16.9]} 23. Qd4 {[%clk 0:00:23.5]}
23... e5 {[%clk 0:00:11.2]} 24. Qh4 {[%clk 0:00:19.3]} 24... f6 {[%clk
0:00:07.5]} 25. Qc4+ {[%clk 0:00:17.1]} 25... Kh8 {[%clk 0:00:06.9]} 26. Qf7
{[%clk 0:00:17.7]} 26... Nc5 {[%clk 0:00:06.3]} 27. Bg7# {[%clk 0:00:17.6]} 1-0

[Event "Early-Titled-Tuesday-Blitz-October-10-2023"]
[Site "Chess.com"]
[Date "2023.10.10"]
[Round "8"]
[White "kleopl"]
[Black "DanielTitichoca"]
[Result "1/2-1/2"]
[WhiteElo "2479"]
[BlackElo "2626"]
[TimeControl "180+1"]
[EndTime "9:26:47 PDT"]
[Termination "Game drawn by repetition"]

1. e4 {[%clk 0:03:00.9]} 1... e5 {[%clk 0:02:51.1]} 2. Nf3 {[%clk 0:02:59.7]}
2... Nc6 {[%clk 0:02:51.1]} 3. c3 {[%clk 0:03:00.1]} 3... d6 {[%clk 0:02:27]} 4.
d4 {[%clk 0:02:59]} 4... Bg4 {[%clk 0:02:27.5]} 5. Be2 {[%clk 0:02:53.8]} 5...
g6 {[%clk 0:02:24.4]} 6. h3 {[%clk 0:02:45.2]} 6... Bxf3 {[%clk 0:02:23.7]} 7.
Bxf3 {[%clk 0:02:46.1]} 7... Bg7 {[%clk 0:02:21.7]} 8. Be3 {[%clk 0:02:44.1]}
8... Nf6 {[%clk 0:02:17.1]} 9. O-O {[%clk 0:02:25.7]} 9... O-O {[%clk
0:02:16.9]} 10. Re1 {[%clk 0:02:25.8]} 10... d5 {[%clk 0:02:13]} 11. exd5 {[%clk
0:01:52]} 11... Nxd5 {[%clk 0:02:11.8]} 12. Bxd5 {[%clk 0:01:47.8]} 12... Qxd5
{[%clk 0:02:10.5]} 13. dxe5 {[%clk 0:01:48]} 13... Qxd1 {[%clk 0:02:08.1]} 14.
Rxd1 {[%clk 0:01:48.9]} 14... Nxe5 {[%clk 0:02:08.2]} 15. Na3 {[%clk 0:01:45.7]}
15... Rad8 {[%clk 0:02:01.4]} 16. Kf1 {[%clk 0:01:43.2]} 16... a6 {[%clk
0:01:56.5]} 17. Ke2 {[%clk 0:01:42.7]} 17... Rfe8 {[%clk 0:01:53.9]} 18. Rxd8
{[%clk 0:01:39.8]} 18... Rxd8 {[%clk 0:01:54.4]} 19. Rd1 {[%clk 0:01:40.1]}
19... Re8 {[%clk 0:01:53]} 20. Rd5 {[%clk 0:01:35.2]} 20... f5 {[%clk
0:01:44.5]} 21. Kd2 {[%clk 0:01:30.5]} 21... c6 {[%clk 0:01:32.6]} 22. Rd4
{[%clk 0:01:17.3]} 22... Bf8 {[%clk 0:01:22.9]} 23. Nc2 {[%clk 0:01:12.4]} 23...
b5 {[%clk 0:01:13.3]} 24. Kc1 {[%clk 0:00:58.2]} 24... Nc4 {[%clk 0:01:09.8]}
25. Rd7 {[%clk 0:00:54]} 25... Nxe3 {[%clk 0:00:19.9]} 26. Nxe3 {[%clk
0:00:53.4]} 26... Bh6 {[%clk 0:00:20.5]} 27. Kd2 {[%clk 0:00:52]} 27... Bg5
{[%clk 0:00:15.4]} 28. Kd3 {[%clk 0:00:51]} 28... c5 {[%clk 0:00:13.2]} 29. c4
{[%clk 0:00:50]} 29... Bxe3 {[%clk 0:00:10.9]} 30. fxe3 {[%clk 0:00:48.5]} 30...
bxc4+ {[%clk 0:00:11.6]} 31. Kd2 {[%clk 0:00:48.3]} 31... Rb8 {[%clk 0:00:10.1]}
32. Kc3 {[%clk 0:00:47.8]} 32... Re8 {[%clk 0:00:10.8]} 33. Kd2 {[%clk
0:00:46.8]} 33... Rb8 {[%clk 0:00:07.7]} 34. Kc3 {[%clk 0:00:44.4]} 34... Re8
{[%clk 0:00:08.3]} 35. Kd2 {[%clk 0:00:26.5]} 1/2-1/2

[Event "Early-Titled-Tuesday-Blitz-October-10-2023"]
[Site "Chess.com"]
[Date "2023.10.10"]
[Round "8"]
[White "NovozhilovSemen"]
[Black "CSB7"]
[Result "1-0"]
[WhiteElo "2631"]
[BlackElo "2745"]
[TimeControl "180+1"]
[EndTime "9:26:48 PDT"]
[Termination "NovozhilovSemen won by resignation"]

1. d4 {[%clk 0:03:00.9]} 1... Nf6 {[%clk 0:02:59.5]} 2. Nf3 {[%clk 0:03:00.7]}
2... g6 {[%clk 0:02:59.7]} 3. Nc3 {[%clk 0:03:00.8]} 3... d5 {[%clk 0:02:54.4]}
4. Bf4 {[%clk 0:03:00]} 4... Bg7 {[%clk 0:02:52.7]} 5. Nb5 {[%clk 0:03:00]} 5...
Na6 {[%clk 0:02:51.3]} 6. e3 {[%clk 0:03:00.3]} 6... O-O {[%clk 0:02:50.5]} 7.
Be2 {[%clk 0:03:00.6]} 7... c6 {[%clk 0:02:36.3]} 8. Nc3 {[%clk 0:02:59.8]} 8...
Nc7 {[%clk 0:02:37]} 9. Ne5 {[%clk 0:02:59]} 9... Nd7 {[%clk 0:02:15.8]} 10. h4
{[%clk 0:02:54.9]} 10... f6 {[%clk 0:02:00.5]} 11. Nxd7 {[%clk 0:02:51.8]} 11...
Bxd7 {[%clk 0:02:01.4]} 12. h5 {[%clk 0:02:50.8]} 12... e5 {[%clk 0:02:01.6]}
13. Bg3 {[%clk 0:02:48.7]} 13... Ne6 {[%clk 0:01:49.3]} 14. hxg6 {[%clk
0:02:44.5]} 14... hxg6 {[%clk 0:01:48.9]} 15. Qd3 {[%clk 0:02:44.2]} 15... e4
{[%clk 0:01:12.2]} 16. Qd2 {[%clk 0:02:40.2]} 16... f5 {[%clk 0:01:12.8]} 17.
Bd6 {[%clk 0:02:33.8]} 17... Rf7 {[%clk 0:01:02.1]} 18. f3 {[%clk 0:02:33.9]}
18... Be8 {[%clk 0:00:52]} 19. Bg3 {[%clk 0:02:30.1]} 19... Qg5 {[%clk
0:00:45.3]} 20. Bf2 {[%clk 0:02:24.3]} 20... Qxg2 {[%clk 0:00:34.5]} 21. Rg1
{[%clk 0:02:18.5]} 21... Qh2 {[%clk 0:00:34]} 22. Rxg6 {[%clk 0:01:43.2]} 22...
Rf6 {[%clk 0:00:34.1]} 23. Rxf6 {[%clk 0:01:33.5]} 23... Bxf6 {[%clk 0:00:35]}
24. fxe4 {[%clk 0:01:26.5]} 24... fxe4 {[%clk 0:00:29.1]} 25. Bg4 {[%clk
0:01:25.7]} 25... Ng5 {[%clk 0:00:27.4]} 26. O-O-O {[%clk 0:01:25.5]} 26... Bh5
{[%clk 0:00:26.7]} 27. Bxh5 {[%clk 0:01:16.6]} 27... Qxh5 {[%clk 0:00:27.6]} 28.
Ne2 {[%clk 0:01:08.5]} 28... Be7 {[%clk 0:00:15.3]} 29. Nf4 {[%clk 0:01:07.7]}
29... Qh2 {[%clk 0:00:14.6]} 30. Rg1 {[%clk 0:00:58]} 30... Kf7 {[%clk
0:00:14.9]} 31. Rf1 {[%clk 0:00:38.6]} 31... Nf3 {[%clk 0:00:13.7]} 32. Qa5
{[%clk 0:00:39]} 32... b6 {[%clk 0:00:05]} 33. Qc3 {[%clk 0:00:38.3]} 33... Rc8
{[%clk 0:00:03.9]} 34. Qb3 {[%clk 0:00:38.3]} 34... Qh4 {[%clk 0:00:03]} 35.
Bxh4 {[%clk 0:00:37.6]} 1-0

[Event "Early-Titled-Tuesday-Blitz-October-10-2023"]
[Site "Chess.com"]
[Date "2023.10.10"]
[Round "8"]
[White "Zq1"]
[Black "Andrei_Skvortsov"]
[Result "1/2-1/2"]
[WhiteElo "2520"]
[BlackElo "2689"]
[TimeControl "180+1"]
[EndTime "9:26:48 PDT"]
[Termination "Game drawn by stalemate"]

1. d4 {[%clk 0:03:00.9]} 1... d5 {[%clk 0:03:00.1]} 2. c4 {[%clk 0:03:00.8]}
2... dxc4 {[%clk 0:02:57.8]} 3. e3 {[%clk 0:02:59]} 3... Nf6 {[%clk 0:02:56.4]}
4. Bxc4 {[%clk 0:02:57.7]} 4... e6 {[%clk 0:02:55.8]} 5. Nf3 {[%clk 0:02:56.9]}
5... c5 {[%clk 0:02:56.5]} 6. O-O {[%clk 0:02:54.7]} 6... a6 {[%clk 0:02:57]} 7.
dxc5 {[%clk 0:02:51.8]} 7... Bxc5 {[%clk 0:02:57.9]} 8. Qxd8+ {[%clk 0:02:50.9]}
8... Kxd8 {[%clk 0:02:58.8]} 9. Nc3 {[%clk 0:02:50]} 9... Ke7 {[%clk 0:02:58.8]}
10. a3 {[%clk 0:02:48.6]} 10... b5 {[%clk 0:02:55.5]} 11. Be2 {[%clk 0:02:47.6]}
11... Bb7 {[%clk 0:02:54.1]} 12. b4 {[%clk 0:02:47.5]} 12... Bd6 {[%clk
0:02:51.8]} 13. Bd2 {[%clk 0:02:33.5]} 13... Nbd7 {[%clk 0:02:50.6]} 14. a4
{[%clk 0:02:32.6]} 14... Bxb4 {[%clk 0:02:50.3]} 15. axb5 {[%clk 0:02:31.5]}
15... axb5 {[%clk 0:02:50.4]} 16. Nd4 {[%clk 0:02:19.7]} 16... Rxa1 {[%clk
0:02:49.1]} 17. Rxa1 {[%clk 0:02:18]} 17... Ra8 {[%clk 0:02:34.5]} 18. Rb1
{[%clk 0:02:12.4]} 18... Bc5 {[%clk 0:02:25.4]} 19. Ndxb5 {[%clk 0:02:05.6]}
19... Ne4 {[%clk 0:02:22.5]} 20. Nxe4 {[%clk 0:02:02.9]} 20... Bxe4 {[%clk
0:02:22.1]} 21. Rd1 {[%clk 0:01:41.9]} 21... Ne5 {[%clk 0:02:06.2]} 22. Bc3
{[%clk 0:01:35.3]} 22... Nc6 {[%clk 0:02:02.5]} 23. Bxg7 {[%clk 0:01:26.5]}
23... Rg8 {[%clk 0:01:59.2]} 24. Bd4 {[%clk 0:01:04.3]} 24... Rxg2+ {[%clk
0:01:54.4]} 25. Kf1 {[%clk 0:01:03.8]} 25... Nxd4 {[%clk 0:01:53.7]} 26. Nxd4
{[%clk 0:01:02.5]} 26... Rxh2 {[%clk 0:01:53.6]} 27. f3 {[%clk 0:01:01.9]} 27...
Rh1+ {[%clk 0:01:51.1]} 28. Kf2 {[%clk 0:01:01.6]} 28... Rxd1 {[%clk 0:01:51.3]}
29. Bxd1 {[%clk 0:01:01.6]} 29... Bd5 {[%clk 0:01:50.1]} 30. Ne2 {[%clk
0:00:55]} 30... Kf6 {[%clk 0:01:47.5]} 31. Nf4 {[%clk 0:00:50.8]} 31... Bc6
{[%clk 0:01:47.7]} 32. Bc2 {[%clk 0:00:47]} 32... h6 {[%clk 0:01:47.9]} 33. Ke2
{[%clk 0:00:46]} 33... Kg5 {[%clk 0:01:46.5]} 34. Nd3 {[%clk 0:00:42.1]} 34...
Bd6 {[%clk 0:01:46.9]} 35. f4+ {[%clk 0:00:41.2]} 35... Kg4 {[%clk 0:01:45.4]}
36. Kf2 {[%clk 0:00:41.3]} 36... f6 {[%clk 0:01:42.5]} 37. Bd1+ {[%clk
0:00:41.3]} 37... Kh4 {[%clk 0:01:41.8]} 38. Bf3 {[%clk 0:00:40.6]} 38... Bxf3
{[%clk 0:01:37.4]} 39. Kxf3 {[%clk 0:00:40.4]} 39... Kh5 {[%clk 0:01:34]} 40. e4
{[%clk 0:00:33.6]} 40... Kg6 {[%clk 0:01:31.6]} 41. Ne1 {[%clk 0:00:29.6]} 41...
h5 {[%clk 0:01:21.6]} 42. Ng2 {[%clk 0:00:26.2]} 42... Be7 {[%clk 0:01:19.1]}
43. f5+ {[%clk 0:00:15.5]} 43... exf5 {[%clk 0:01:13.4]} 44. Nh4+ {[%clk
0:00:15.4]} 44... Kg5 {[%clk 0:01:13.5]} 45. Nxf5 {[%clk 0:00:15.7]} 45... Bf8
{[%clk 0:01:14]} 46. Ne3 {[%clk 0:00:14.7]} 46... h4 {[%clk 0:01:13.6]} 47. Nd5
{[%clk 0:00:13.1]} 47... Bd6 {[%clk 0:01:06]} 48. Nxf6 {[%clk 0:00:13]} 48...
Kxf6 {[%clk 0:00:59.1]} 49. e5+ {[%clk 0:00:12.9]} 49... Bxe5 {[%clk 0:00:59.4]}
50. Kg2 {[%clk 0:00:13]} 50... Kg5 {[%clk 0:00:59.5]} 51. Kh1 {[%clk 0:00:13]}
51... Kg4 {[%clk 0:00:59.9]} 52. Kg1 {[%clk 0:00:12.9]} 52... Kh3 {[%clk
0:00:59.4]} 53. Kh1 {[%clk 0:00:12.8]} 53... Bd4 {[%clk 0:01:00.1]} 1/2-1/2

[Event "Early-Titled-Tuesday-Blitz-October-10-2023"]
[Site "Chess.com"]
[Date "2023.10.10"]
[Round "8"]
[White "attack2mateU"]
[Black "rasmussvane"]
[Result "0-1"]
[WhiteElo "2738"]
[BlackElo "3000"]
[TimeControl "180+1"]
[EndTime "9:26:52 PDT"]
[Termination "rasmussvane won on time"]

1. e4 {[%clk 0:03:00.9]} 1... c6 {[%clk 0:02:58.4]} 2. Nc3 {[%clk 0:02:55.9]}
2... d5 {[%clk 0:02:59.3]} 3. Nf3 {[%clk 0:02:56.3]} 3... dxe4 {[%clk
0:02:57.8]} 4. Nxe4 {[%clk 0:02:57.2]} 4... Nf6 {[%clk 0:02:57.6]} 5. Qe2 {[%clk
0:02:57.7]} 5... Nxe4 {[%clk 0:02:57.5]} 6. Qxe4 {[%clk 0:02:58.6]} 6... Qa5
{[%clk 0:02:57.8]} 7. b4 {[%clk 0:02:58.1]} 7... Qd5 {[%clk 0:02:56.1]} 8. Qe3
{[%clk 0:02:58]} 8... Bf5 {[%clk 0:02:53]} 9. c4 {[%clk 0:02:58]} 9... Qe4
{[%clk 0:02:52.4]} 10. Be2 {[%clk 0:02:57.6]} 10... Qxe3 {[%clk 0:02:42.6]} 11.
fxe3 {[%clk 0:02:58.5]} 11... e6 {[%clk 0:02:42.9]} 12. a3 {[%clk 0:02:48.7]}
12... Nd7 {[%clk 0:02:27.5]} 13. O-O {[%clk 0:02:32.3]} 13... Be7 {[%clk
0:02:15.4]} 14. Bb2 {[%clk 0:02:26.4]} 14... O-O {[%clk 0:02:13.1]} 15. Bc3
{[%clk 0:02:23.5]} 15... Bf6 {[%clk 0:02:05.5]} 16. d4 {[%clk 0:01:59.5]} 16...
c5 {[%clk 0:01:46.5]} 17. bxc5 {[%clk 0:01:57.2]} 17... Nxc5 {[%clk 0:01:26.6]}
18. Bb4 {[%clk 0:01:57.2]} 18... Nb3 {[%clk 0:00:50.4]} 19. Ra2 {[%clk 0:01:25]}
19... Rfc8 {[%clk 0:00:49.1]} 20. Rb2 {[%clk 0:01:25.2]} 20... a5 {[%clk
0:00:33.2]} 21. Rxb3 {[%clk 0:00:56.7]} 21... axb4 {[%clk 0:00:33]} 22. axb4
{[%clk 0:00:57.6]} 22... Ra2 {[%clk 0:00:31.1]} 23. Re1 {[%clk 0:00:43.5]} 23...
g5 {[%clk 0:00:29.3]} 24. h3 {[%clk 0:00:13]} 24... h5 {[%clk 0:00:29.3]} 25.
Nh2 {[%clk 0:00:12.8]} 25... Be4 {[%clk 0:00:21.9]} 26. c5 {[%clk 0:00:06]}
26... g4 {[%clk 0:00:22.1]} 27. g3 {[%clk 0:00:03.3]} 27... gxh3 {[%clk
0:00:18.3]} 28. Nf3 {[%clk 0:00:01.6]} 28... Rca8 {[%clk 0:00:15.6]} 29. Kf2
{[%clk 0:00:02.2]} 29... Rc2 {[%clk 0:00:13.8]} 0-1